bitfinex/quotes_BTCUSD_20251001
["timestamp","ask_amount","ask_price","bid_price","bid_amount"]
[1759327500816,0.00046814,117270.0,117250.0,0.17057569]
[1759327501015,0.00046814,117270.0,117260.0,0.17056114]
[1759327501160,0.00046814,117270.0,117260.0,0.77591114]
[1759327501588,0.00046814,117270.0,117260.0,0.51290933]
[1759327501786,0.00046814,117270.0,117260.0,0.80666123]
[1759327502010,0.00046814,117270.0,117260.0,0.86742933]
[1759327502212,0.00046814,117270.0,117260.0,0.6014548]
[1759327502587,0.00046814,117270.0,117260.0,0.42954366]
[1759327502800,0.00251814,117270.0,117260.0,0.77791933]
[1759327503007,0.17607474,117270.0,117260.0,0.34015819]
[1759327503210,0.00046814,117270.0,117260.0,0.00015819]
[1759327503416,0.00251814,117270.0,117260.0,0.17071933]
[1759327503625,0.17607474,117270.0,117260.0,0.00015819]
[1759327503825,0.00552814,117270.0,117260.0,0.00015819]
[1759327504024,0.00046814,117270.0,117260.0,0.17071933]
[1759327504253,0.26546021,117270.0,117260.0,0.00015819]
[1759327504833,0.53414021,117270.0,117260.0,0.00015819]
[1759327505067,0.17060502,117230.0,117210.0,0.15815762]
[1759327505301,0.17361502,117230.0,117210.0,0.06947762]
[1759327505496,0.18214525,117230.0,117200.0,0.17922484]
[1759327505736,0.44799975,117240.0,117210.0,0.17063381]
[1759327505932,0.45224975,117240.0,117220.0,0.17061934]
[1759327506141,0.45271789,117240.0,117220.0,0.17061934]
[1759327506365,0.17566648,117230.0,117200.0,0.17917965]
[1759327506626,0.17061953,117220.0,117200.0,0.18768352]
[1759327506839,0.4438193,117230.0,117200.0,0.18768352]
[1759327507058,0.17363323,117220.0,117200.0,0.0085101]
[1759327507272,0.1726839,117210.0,117190.0,0.17066292]
[1759327507474,0.00506,117210.0,117200.0,0.17064846]
[1759327507692,0.44963419,117220.0,117200.0,0.17064842]
[1759327507917,0.17363027,117220.0,117200.0,0.17064842]
[1759327508163,0.17569822,117210.0,117190.0,0.17922364]
[1759327508413,0.00506,117210.0,117200.0,0.17064846]
[1759327508684,0.17061946,117220.0,117200.0,0.17064846]
[1759327509023,0.17569423,117210.0,117190.0,0.00856665]
[1759327509245,0.17064846,117200.0,117170.0,0.24866856]
[1759327509462,0.17365846,117200.0,117180.0,0.17067757]
[1759327509657,0.00205,117190.0,117180.0,0.17067759]
[1759327509865,0.00301,117200.0,117180.0,0.17067759]
[1759327510034,0.00506,117190.0,117180.0,0.51067759]
[1759327510238,0.00506,117190.0,117180.0,0.51923996]
[1759327510439,0.00251756,117190.0,117180.0,0.51923996]
[1759327510640,0.00046756,117190.0,117180.0,0.61022543]
[1759327510867,0.00046756,117190.0,117180.0,0.51923996]
[1759327511267,0.00046756,117190.0,117180.0,0.52083996]
[1759327511509,0.00046756,117190.0,117180.0,0.61122543]
[1759327511838,0.00046756,117190.0,117180.0,0.63558892]
[1759327512037,0.00046756,117190.0,117180.0,0.61122543]
[1759327512448,0.00046756,117190.0,117180.0,0.64137733]
[1759327512660,0.00046756,117190.0,117180.0,0.88230543]
[1759327512861,0.00046756,117190.0,117180.0,0.97102543]
[1759327513492,0.00046756,117190.0,117180.0,1.00117733]
[1759327514119,0.00046756,117190.0,117180.0,0.97102543]
[1759327514704,0.00046756,117190.0,117180.0,0.17923996]
[1759327514919,0.00251756,117190.0,117180.0,0.17923996]
[1759327515141,0.00251756,117190.0,117180.0,0.00856237]
[1759327515347,0.17619058,117190.0,117180.0,0.34]
[1759327515569,0.00552756,117190.0,117180.0,0.51067759]
[1759327515795,0.00046756,117190.0,117180.0,0.51067759]
[1759327516219,0.00552756,117190.0,117180.0,0.34]
[1759327516446,0.17619058,117190.0,117170.0,0.45007094]
[1759327516683,0.17368759,117180.0,117160.0,0.17065202]
[1759327516890,0.17368781,117180.0,117160.0,0.1793088]
[1759327517104,0.17368816,117180.0,117160.0,0.4502288]
[1759327517316,0.17274215,117170.0,117160.0,0.00865678]
[1759327517529,0.17274215,117170.0,117160.0,0.17070672]
[1759327517530,0.00506,117170.0,117160.0,0.17070672]
[1759327517766,0.17575215,117170.0,117140.0,0.17921763]
[1759327518020,0.17575215,117170.0,117130.0,0.32887575]
[1759327518021,0.17371701,117160.0,117130.0,0.32887575]
[1759327518250,0.17371701,117160.0,117130.0,0.24015575]
[1759327518251,0.17373327,117150.0,117130.0,0.24015575]
[1759327518463,0.00301,117150.0,117130.0,0.17067813]
[1759327518677,0.08938547,117160.0,117150.0,0.17072129]
[1759327518889,0.17275676,117160.0,117140.0,0.17927266]
[1759327519092,0.00301,117150.0,117130.0,0.17921565]
[1759327519358,0.17072129,117150.0,117130.0,0.17921565]
[1759327519580,0.17278587,117140.0,117130.0,0.00012026]
[1759327519792,0.26217134,117140.0,117130.0,0.00012026]
[1759327520652,0.62177134,117140.0,117130.0,0.00012026]
[1759327520856,0.28717134,117140.0,117130.0,0.00012026]
[1759327521038,1.00205134,117140.0,117130.0,0.00012026]
[1759327521185,1.00515134,117140.0,117130.0,0.00012026]
[1759327521380,0.29027134,117140.0,117130.0,0.00012026]
[1759327521823,0.62515134,117140.0,117130.0,0.00012026]
[1759327522048,0.65015134,117140.0,117130.0,0.00012026]
[1759327522460,0.29027134,117140.0,117130.0,0.00012026]
[1759327522879,0.65027134,117140.0,117130.0,0.00012026]
[1759327523105,0.68042324,117140.0,117130.0,0.00012026]
[1759327523742,0.78042324,117140.0,117130.0,0.00012026]
[1759327523913,0.68042324,117140.0,117130.0,0.00012026]
[1759327524149,0.17079419,117100.0,117090.0,0.66212562]
[1759327524310,0.53656966,117100.0,117090.0,0.66226525]
[1759327524563,0.36255547,117100.0,117090.0,0.83307402]
[1759327524768,0.36565547,117100.0,117090.0,0.83307402]
[1759327524960,0.08876,117110.0,117100.0,0.17079117]
[1759327525167,0.0031,117120.0,117100.0,0.17079117]
[1759327525414,0.36046547,117120.0,117100.0,0.17079117]
[1759327525572,0.17927266,117140.0,117120.0,0.17076015]
[1759327525774,0.09151547,117130.0,117120.0,0.17076015]
[1759327525973,0.36327547,117130.0,117120.0,0.17076015]
[1759327526176,0.09151547,117130.0,117120.0,0.17076015]
[1759327526379,0.36411547,117130.0,117120.0,0.17076015]
[1759327526611,0.53486591,117130.0,117110.0,0.1707796]
[1759327527001,0.17076502,117120.0,117110.0,0.34]
[1759327527204,0.09248547,117120.0,117110.0,0.5107796]
[1759327527522,0.17078333,117110.0,117090.0,0.7635964]
[1759327527686,0.17388333,117110.0,117100.0,0.34]
[1759327527889,0.17388333,117110.0,117100.0,0.51079419]
[1759327528135,0.00523,117110.0,117100.0,0.51079419]
[1759327528285,0.1760096,117110.0,117100.0,0.34]
[1759327528492,0.1760096,117110.0,117090.0,0.7635964]
[1759327528700,0.00523,117110.0,117100.0,0.17079419]
[1759327528895,0.1760096,117110.0,117090.0,0.7635964]
[1759327529319,0.00523,117110.0,117100.0,0.17079419]
[1759327529521,0.00213,117110.0,117100.0,0.17079419]
[1759327529887,0.00213,117110.0,117090.0,0.7635964]
[1759327529888,0.1760096,117110.0,117090.0,0.7635964]
[1759327530024,0.26539507,117110.0,117090.0,0.7635964]
[1759327530248,0.0031,117100.0,117090.0,1.1035964]
[1759327530447,0.36162547,117110.0,117100.0,0.17079419]
[1759327530650,0.09151547,117110.0,117100.0,0.17079419]
[1759327530849,0.0031,117120.0,117110.0,0.1707796]
[1759327531072,0.27113335,117140.0,117120.0,0.17076502]
[1759327531285,0.45034547,117140.0,117130.0,0.17075044]
[1759327531487,0.08938547,117140.0,117130.0,0.17075044]
[1759327531692,0.36375547,117140.0,117130.0,0.17075044]
[1759327531957,0.0085,117150.0,117140.0,0.17073587]
[1759327532171,0.17929031,117160.0,117140.0,0.51581587]
[1759327532172,0.44310672,117160.0,117140.0,0.51581587]
[1759327532377,0.17930389,117180.0,117150.0,0.17072129]
[1759327532579,0.53242425,117180.0,117160.0,0.17070672]
[1759327532721,0.53552425,117180.0,117160.0,0.17070672]
[1759327532917,0.09248547,117180.0,117160.0,0.17070672]
[1759327533193,0.08938547,117180.0,117170.0,0.17069215]
[1759327533368,0.17929165,117190.0,117170.0,0.17069215]
[1759327533575,0.08938547,117190.0,117170.0,0.17069204]
[1759327533748,0.54029835,117200.0,117180.0,0.17067759]
[1759327533749,0.17921835,117200.0,117180.0,0.17067759]
[1759327533974,0.17066302,117190.0,117170.0,0.17362204]
[1759327534179,0.17066302,117190.0,117170.0,0.51068405]
[1759327534706,0.17376302,117190.0,117170.0,0.51068405]
[1759327534909,0.17590759,117180.0,117170.0,0.34]
[1759327535369,0.17069939,117170.0,117160.0,0.34]
[1759327535579,0.17072441,117150.0,117130.0,0.25951044]
[1759327535805,0.17073587,117140.0,117120.0,0.24019615]
[1759327536006,0.17286587,117140.0,117120.0,0.51227975]
[1759327536222,0.00213,117140.0,117130.0,0.51075044]
[1759327536422,0.00213,117140.0,117120.0,0.24023975]
[1759327536423,0.17286587,117140.0,117120.0,0.24023975]
[1759327536597,0.17286587,117140.0,117120.0,0.17076213]
[1759327536798,0.17075044,117130.0,117120.0,0.00013963]
[1759327537049,0.26323591,117130.0,117120.0,0.00013963]
[1759327537250,0.26536591,117130.0,117120.0,0.00013963]
[1759327538719,0.32051781,117130.0,117120.0,0.00013963]
[1759327539133,0.68083781,117130.0,117120.0,0.00013963]
[1759327539349,0.32051781,117130.0,117120.0,0.00013963]
[1759327539601,0.68079781,117130.0,117120.0,0.00013963]
[1759327540421,0.32051781,117130.0,117120.0,0.00013963]
[1759327540650,0.59175781,117130.0,117120.0,0.00013963]
[1759327540854,0.68051781,117130.0,117120.0,0.00013963]
[1759327541066,0.65551781,117130.0,117120.0,0.00013963]
[1759327541404,0.26536591,117130.0,117120.0,0.00013963]
[1759327541614,0.26226591,117130.0,117120.0,0.17090465]
[1759327541961,0.08938547,117130.0,117120.0,0.17305465]
[1759327542190,0.08938547,117130.0,117120.0,0.51305465]
[1759327542366,0.36042547,117130.0,117120.0,0.51090465]
[1759327542826,0.36038547,117130.0,117120.0,0.51090465]
[1759327543044,0.271,117140.0,117130.0,0.17073623]
[1759327543553,0.00523,117130.0,117120.0,0.34013963]
[1759327543758,0.26536591,117130.0,117120.0,0.00013963]
[1759327544684,0.38427781,117130.0,117120.0,0.00013963]
[1759327544889,0.40927781,117130.0,117120.0,0.00013963]
[1759327545324,0.29551781,117130.0,117120.0,0.00013963]
[1759327545528,0.53608591,117130.0,117120.0,0.00013963]
[1759327546295,0.53065591,117130.0,117120.0,0.00013963]
[1759327546683,0.53588591,117130.0,117120.0,0.00013963]
[1759327546888,0.0085,117140.0,117120.0,0.17090465]
[1759327547104,0.35970547,117140.0,117130.0,0.17075044]
[1759327547753,0.1792587,117150.0,117130.0,0.17290044]
[1759327547953,0.26225208,117140.0,117120.0,0.44114465]
[1759327548168,0.17075044,117130.0,117120.0,0.51090465]
[1759327548373,0.17075044,117130.0,117120.0,0.34013963]
[1759327548796,0.17075044,117130.0,117120.0,0.51090465]
[1759327549026,0.26322208,117140.0,117120.0,0.51090465]
[1759327549230,0.26801253,117160.0,117140.0,0.51073587]
[1759327549432,0.08938547,117150.0,117140.0,0.51073587]
[1759327550438,0.26539676,117150.0,117140.0,0.34]
[1759327550856,0.17073806,117140.0,117120.0,0.1794429]
[1759327551083,0.17395806,117140.0,117130.0,0.51075044]
[1759327551283,0.17602806,117140.0,117130.0,0.34]
[1759327551495,0.26541353,117140.0,117130.0,0.34]
[1759327551902,0.53529353,117140.0,117130.0,0.34]
[1759327552124,0.17075044,117130.0,117120.0,0.34013963]
[1759327552330,0.26335591,117130.0,117120.0,0.34013963]
[1759327552544,0.26542591,117130.0,117120.0,0.34013963]
[1759327554209,0.08938547,117130.0,117120.0,0.51090465]
[1759327554417,0.26013591,117130.0,117120.0,0.51090465]
[1759327554621,0.26220591,117130.0,117120.0,0.34013963]
[1759327555115,0.26542591,117130.0,117120.0,0.34013963]
[1759327555767,0.09145547,117130.0,117120.0,0.51090465]
[1759327555969,0.08938547,117130.0,117120.0,0.51090465]
[1759327556208,0.08938547,117130.0,117120.0,0.34013963]
[1759327556387,0.26013591,117130.0,117120.0,0.51090465]
[1759327556617,0.44061599,117140.0,117130.0,0.17075044]
[1759327556798,0.53000134,117140.0,117130.0,0.0021]
[1759327556955,0.17075044,117130.0,117120.0,0.34306963]
[1759327557167,0.53000134,117140.0,117120.0,0.51090465]
[1759327557371,0.53322134,117140.0,117120.0,0.51090465]
[1759327558057,0.17075044,117130.0,117120.0,0.51090465]
[1759327558263,0.53322134,117140.0,117120.0,0.51090465]
[1759327558825,0.53000134,117140.0,117120.0,0.51090465]
[1759327559244,0.17075044,117130.0,117120.0,0.51090465]
[1759327559391,0.17075044,117130.0,117120.0,0.78022465]
[1759327559608,0.53322134,117140.0,117120.0,0.78022465]
[1759327559821,0.26988,117140.0,117130.0,0.17285044]
[1759327560029,0.44000175,117150.0,117130.0,0.17578044]
[1759327560247,0.52938722,117150.0,117140.0,0.17073587]
[1759327560448,0.52938722,117150.0,117130.0,0.17075044]
[1759327560701,0.17075044,117130.0,117120.0,0.34013963]
[1759327560977,0.26012134,117140.0,117120.0,0.51090465]
[1759327561183,0.17925836,117150.0,117130.0,0.17368044]
[1759327561394,0.18773399,117170.0,117150.0,0.17072129]
[1759327561601,0.17070672,117160.0,117150.0,0.17072129]
[1759327561800,0.26861946,117170.0,117150.0,0.17575129]
[1759327562006,0.26861946,117170.0,117150.0,0.17072129]
[1759327562231,0.17921146,117180.0,117160.0,0.17573672]
[1759327562473,0.44829146,117180.0,117170.0,0.17069215]
[1759327562878,0.17921146,117180.0,117160.0,0.17070672]
[1759327563091,0.17921146,117180.0,117160.0,0.43970672]
[1759327563092,0.44809146,117180.0,117160.0,0.43970672]
[1759327563305,0.44809146,117180.0,117170.0,0.17069215]
[1759327563452,0.17069215,117170.0,117160.0,0.51070672]
[1759327563650,0.17276215,117170.0,117160.0,0.34]
[1759327563873,0.17276215,117170.0,117160.0,0.51070672]
[1759327564229,0.17598215,117170.0,117160.0,0.34]
[1759327564436,0.17598215,117170.0,117140.0,0.60803266]
[1759327564437,0.17071577,117160.0,117140.0,0.60803266]
[1759327564648,0.26329762,117170.0,117160.0,0.34]
[1759327564864,0.17072881,117150.0,117130.0,0.52221796]
[1759327565082,0.17072881,117150.0,117140.0,0.51073587]
[1759327565220,0.17279881,117150.0,117140.0,0.34]
[1759327565569,0.17279881,117150.0,117140.0,0.51073587]
[1759327565788,0.17073587,117140.0,117130.0,0.17075044]
[1759327566010,0.17075044,117130.0,117120.0,0.17930327]
[1759327566244,0.17075044,117130.0,117110.0,0.25172543]
[1759327566442,0.17075044,117130.0,117110.0,0.44779781]
[1759327566643,0.17075044,117130.0,117110.0,0.17931781]
[1759327566851,0.17075044,117130.0,117120.0,0.17076502]
[1759327567441,0.17604044,117130.0,117110.0,0.17945744]
[1759327567647,0.17398502,117120.0,117110.0,0.00013963]
[1759327567824,0.53173049,117120.0,117110.0,0.00013963]
[1759327568031,0.53380049,117120.0,117110.0,0.00013963]
[1759327568448,0.53058049,117120.0,117110.0,0.00013963]
[1759327568664,0.53380049,117120.0,117110.0,0.00013963]
[1759327569696,0.26544049,117120.0,117110.0,0.00013963]
[1759327569851,0.53348049,117120.0,117110.0,0.00013963]
[1759327570218,0.26544049,117120.0,117110.0,0.00013963]
[1759327570620,0.53328049,117120.0,117110.0,0.00013963]
[1759327571157,0.53324049,117120.0,117110.0,0.00013963]
[1759327572439,0.53300049,117120.0,117110.0,0.00013963]
[1759327572656,0.52978049,117120.0,117110.0,0.00013963]
[1759327572898,0.53300049,117120.0,117110.0,0.00013963]
[1759327573311,0.26544049,117120.0,117110.0,0.00013963]
[1759327573522,0.53296049,117120.0,117110.0,0.00013963]
[1759327574040,0.26222049,117120.0,117110.0,0.00013963]
[1759327574249,0.26015049,117120.0,117110.0,0.00013963]
[1759327574450,0.52747049,117120.0,117110.0,0.00013963]
[1759327574945,0.52954049,117120.0,117110.0,0.00013963]
[1759327575120,0.52946049,117120.0,117110.0,0.00013963]
[1759327575320,0.52934049,117120.0,117110.0,0.00013963]
[1759327575523,0.53256049,117120.0,117110.0,0.00013963]
[1759327575912,0.52934049,117120.0,117110.0,0.17091923]
[1759327576123,0.52930049,117120.0,117110.0,0.17091923]
[1759327576666,0.53252049,117120.0,117110.0,0.00013963]
[1759327577176,0.53252049,117120.0,117110.0,0.17091923]
[1759327577368,0.52930049,117120.0,117110.0,0.17091923]
[1759327577963,0.52679049,117120.0,117110.0,0.17301923]
[1759327578169,0.17075044,117130.0,117110.0,0.51301923]
[1759327578387,0.52669591,117130.0,117120.0,0.17076502]
[1759327578562,0.08938547,117130.0,117120.0,0.17286502]
[1759327578784,0.17927266,117140.0,117120.0,0.17579502]
[1759327579027,0.53513813,117140.0,117120.0,0.51286502]
[1759327579218,0.53513813,117140.0,117130.0,0.17075044]
[1759327579219,0.26865813,117140.0,117130.0,0.17075044]
[1759327579368,0.18248487,117150.0,117130.0,0.17075044]
[1759327579571,0.26865034,117150.0,117140.0,0.51073587]
[1759327579771,0.53505034,117150.0,117140.0,0.34]
[1759327580198,0.53701034,117150.0,117140.0,0.34]
[1759327580417,0.53994034,117150.0,117140.0,0.34]
[1759327580565,0.53994034,117150.0,117130.0,0.17075024]
[1759327580566,0.17075791,117130.0,117110.0,0.18258821]
[1759327580771,0.26015049,117120.0,117110.0,0.00013963]
[1759327580994,0.26222049,117120.0,117110.0,0.00013963]
[1759327581231,0.26540049,117120.0,117110.0,0.34013963]
[1759327581457,0.26540049,117120.0,117110.0,0.00013963]
[1759327582210,0.26015049,117120.0,117110.0,0.00013963]
[1759327582464,0.17075791,117130.0,117110.0,0.19007719]
[1759327582701,0.26596,117130.0,117120.0,0.51076502]
[1759327582902,0.17928575,117140.0,117130.0,0.17075044]
[1759327583286,0.17928575,117140.0,117130.0,0.51075044]
[1759327583488,0.44546487,117150.0,117130.0,0.51283044]
[1759327583685,0.17073587,117140.0,117130.0,0.34208]
[1759327583848,0.17073587,117140.0,117130.0,0.51283044]
[1759327584171,0.17073587,117140.0,117130.0,0.51075044]
[1759327584561,0.17073587,117140.0,117130.0,0.34]
[1759327584979,0.17073587,117140.0,117130.0,0.51075044]
[1759327585174,0.00207,117140.0,117130.0,0.51075044]
[1759327585374,0.52614676,117150.0,117130.0,0.51283044]
[1759327585591,0.25683534,117140.0,117130.0,0.34]
[1759327585768,0.43676129,117150.0,117130.0,0.34208]
[1759327585971,0.26010676,117150.0,117140.0,0.17038874]
[1759327586253,0.26010676,117150.0,117130.0,0.51388021]
[1759327586457,0.52590676,117150.0,117140.0,0.17281587]
[1759327586681,0.17073587,117140.0,117130.0,0.34]
[1759327586808,0.17073587,117140.0,117130.0,0.51075044]
[1759327587009,0.26537134,117140.0,117130.0,0.34]
[1759327587215,0.26012134,117140.0,117130.0,0.34208]
[1759327587454,0.26012134,117140.0,117130.0,0.34]
[1759327587813,0.26219134,117140.0,117130.0,0.34]
[1759327588413,0.26219134,117140.0,117130.0,0.51075044]
[1759327588414,0.26012134,117140.0,117130.0,0.51075044]
[1759327588869,0.26219134,117140.0,117130.0,0.34]
[1759327589509,0.26012134,117140.0,117130.0,0.34]
[1759327589719,0.08938547,117140.0,117130.0,0.51075044]
[1759327589932,0.17070672,117160.0,117150.0,0.17072129]
[1759327590171,0.52764219,117160.0,117150.0,0.17072129]
[1759327590552,0.18240675,117170.0,117160.0,0.17070672]
[1759327590753,0.17070672,117160.0,117150.0,0.51072129]
[1759327590972,0.17070672,117160.0,117150.0,0.51280129]
[1759327591170,0.17277672,117160.0,117150.0,0.34013963]
[1759327591493,0.26534219,117160.0,117150.0,0.00013963]
[1759327591699,0.53082219,117160.0,117150.0,0.00013963]
[1759327591903,0.26216219,117160.0,117150.0,0.00013963]
[1759327592060,0.52764219,117160.0,117150.0,0.00013963]
[1759327592269,0.52756219,117160.0,117150.0,0.00013963]
[1759327592477,0.52549219,117160.0,117150.0,0.00013963]
[1759327592693,0.53074219,117160.0,117150.0,0.00013963]
[1759327593026,0.52756219,117160.0,117150.0,0.00013963]
[1759327594222,0.53074219,117160.0,117150.0,0.00013963]
[1759327596889,0.52549219,117160.0,117150.0,0.00013963]
[1759327597101,0.52756219,117160.0,117150.0,0.00013963]
[1759327597322,0.26216219,117160.0,117150.0,0.17086092]
[1759327597524,0.52521219,117160.0,117150.0,0.17294092]
[1759327597741,0.52728219,117160.0,117150.0,0.00013963]
[1759327597947,0.53046219,117160.0,117150.0,0.00013963]
[1759327599201,0.26534219,117160.0,117150.0,0.00013963]
[1759327599402,0.53050219,117160.0,117150.0,0.00013963]
[1759327599608,0.53034219,117160.0,117150.0,0.00013963]
[1759327600860,0.26534219,117160.0,117150.0,0.00013963]
[1759327601086,0.53022219,117160.0,117150.0,0.00013963]
[1759327601297,0.52684219,117160.0,117150.0,0.00013963]
[1759327601746,0.26216219,117160.0,117150.0,0.00013963]
[1759327601917,0.52684219,117160.0,117150.0,0.00013963]
[1759327602136,0.53002219,117160.0,117150.0,0.00013963]
[1759327603468,0.26534219,117160.0,117150.0,0.00013963]
[1759327603684,0.17070672,117160.0,117150.0,0.17294092]
[1759327603848,0.44346675,117170.0,117160.0,0.17070672]
[1759327604057,0.17070672,117160.0,117150.0,0.51399092]
[1759327604257,0.17277672,117160.0,117150.0,0.51086092]
[1759327604981,0.26861222,117170.0,117150.0,0.51607092]
[1759327605216,0.17070672,117160.0,117150.0,0.51607092]
[1759327605595,0.17277672,117160.0,117150.0,0.51086092]
[1759327606086,0.53639222,117170.0,117160.0,0.17070672]
[1759327606087,0.26861222,117170.0,117160.0,0.17070672]
[1759327606290,0.18775365,117180.0,117160.0,0.17591672]
[1759327606476,0.17069215,117170.0,117160.0,0.34208]
[1759327607033,0.17069215,117170.0,117160.0,0.51278672]
[1759327607238,0.27713912,117180.0,117170.0,0.17069215]
[1759327607450,0.54161912,117180.0,117170.0,0.51069215]
[1759327607600,0.17070672,117160.0,117150.0,0.00013963]
[1759327607792,0.52437219,117160.0,117150.0,0.00013963]
[1759327607999,0.52962219,117160.0,117150.0,0.00013963]
[1759327609583,0.26534219,117160.0,117150.0,0.00013963]
[1759327609784,0.52942219,117160.0,117150.0,0.00013963]
[1759327609987,0.52624219,117160.0,117150.0,0.00013963]
[1759327610335,0.52924219,117160.0,117150.0,0.00013963]
[1759327610548,0.26516219,117160.0,117150.0,0.00013963]
[1759327610750,0.52896219,117160.0,117150.0,0.00013963]
[1759327611205,0.26516219,117160.0,117150.0,0.00013963]
[1759327611421,0.17069215,117170.0,117150.0,0.51294092]
[1759327611632,0.19075365,117180.0,117160.0,0.17374672]
[1759327611633,0.45147365,117180.0,117160.0,0.17374672]
[1759327611843,0.45147365,117180.0,117170.0,0.00208]
[1759327611844,0.26863912,117180.0,117170.0,0.00208]
[1759327612090,0.53446912,117180.0,117170.0,0.34]
[1759327612271,0.53746912,117180.0,117170.0,0.34]
[1759327612677,0.17070672,117160.0,117150.0,0.77446092]
[1759327612908,0.17925365,117180.0,117160.0,0.17070672]
[1759327613118,0.53211912,117180.0,117170.0,0.00208]
[1759327613344,0.17925365,117180.0,117170.0,0.00208]
[1759327613518,0.43419759,117180.0,117170.0,0.51581215]
[1759327613882,0.43419759,117180.0,117170.0,0.51277215]
[1759327614089,0.43427759,117180.0,117170.0,0.51277215]
[1759327614287,0.43439759,117180.0,117170.0,0.51277215]
[1759327614521,0.43439759,117180.0,117170.0,0.00208]
[1759327614719,0.17070672,117160.0,117150.0,0.34013963]
[1759327614924,0.17281672,117160.0,117150.0,0.51086092]
[1759327615219,0.26220219,117160.0,117150.0,0.34013963]
[1759327615441,0.52888219,117160.0,117150.0,0.34013963]
[1759327615660,0.52888219,117160.0,117150.0,0.00013963]
[1759327616684,0.26220219,117160.0,117150.0,0.17086092]
[1759327617063,0.43426672,117160.0,117150.0,0.17598092]
[1759327617272,0.43402672,117160.0,117150.0,0.17294092]
[1759327617491,0.43398672,117160.0,117150.0,0.17294092]
[1759327617893,0.43382672,117160.0,117150.0,0.51294092]
[1759327618308,0.43593672,117160.0,117150.0,0.34013963]
[1759327618559,0.52832219,117160.0,117150.0,0.34013963]
[1759327618780,0.52832219,117160.0,117150.0,0.00013963]
[1759327620305,0.08938547,117160.0,117150.0,0.17294092]
[1759327620587,0.44141272,117170.0,117150.0,0.17294092]
[1759327620812,0.44145336,117170.0,117150.0,0.01929175]
[1759327621035,0.17581672,117160.0,117150.0,0.18793304]
[1759327621252,0.17070672,117160.0,117150.0,0.17086092]
[1759327621471,0.44145336,117170.0,117160.0,0.17070672]
[1759327621703,0.44145336,117170.0,117160.0,0.17582672]
[1759327621704,0.17069215,117170.0,117160.0,0.17582672]
[1759327621955,0.26802245,117190.0,117170.0,0.17069215]
[1759327622187,0.17067759,117180.0,117170.0,0.17069215]
[1759327622406,0.17067759,117180.0,117170.0,0.51277215]
[1759327622640,0.26004849,117190.0,117180.0,0.17067759]
[1759327622839,0.53048849,117190.0,117180.0,0.51067759]
[1759327623126,0.17066302,117190.0,117180.0,0.51275759]
[1759327623339,0.44106302,117190.0,117180.0,0.34208]
[1759327623784,0.44317302,117190.0,117180.0,0.34]
[1759327624826,0.44317302,117190.0,117180.0,0.51067759]
[1759327625718,0.00211,117190.0,117180.0,0.51067759]
[1759327625875,6.125e-05,117200.0,117190.0,0.17066302]
[1759327626089,0.08944672,117200.0,117190.0,0.17274302]
[1759327626290,0.35904672,117200.0,117190.0,0.51578302]
[1759327626734,0.17066302,117190.0,117180.0,0.00863607]
[1759327626962,0.17068858,117180.0,117170.0,0.34]
[1759327627161,0.53166405,117180.0,117170.0,0.34]
[1759327627379,0.17069821,117170.0,117160.0,0.34]
[1759327627591,0.26008368,117170.0,117160.0,0.34]
[1759327627806,0.26008368,117170.0,117160.0,0.51278672]
[1759327627807,0.08938547,117170.0,117160.0,0.51278672]
[1759327628186,0.26007762,117170.0,117160.0,0.51278672]
[1759327628402,0.44316858,117180.0,117170.0,0.17069215]
[1759327628609,0.17069215,117170.0,117160.0,0.51070672]
[1759327628847,0.17069215,117170.0,117160.0,0.78386672]
[1759327629118,0.17069215,117170.0,117160.0,0.34208]
[1759327629522,0.17280215,117170.0,117160.0,0.34]
[1759327630559,0.08938547,117180.0,117170.0,0.02293977]
[1759327630773,0.26006306,117180.0,117170.0,0.02805977]
[1759327631002,0.17966381,117190.0,117170.0,0.19571192]
[1759327631214,0.17067759,117180.0,117170.0,0.02805977]
[1759327631418,0.17278759,117180.0,117170.0,0.02293977]
[1759327631621,0.26217306,117180.0,117170.0,0.02293977]
[1759327632257,0.26517306,117180.0,117170.0,0.02293977]
[1759327632871,0.53769306,117180.0,117170.0,0.02293977]
[1759327633658,0.53749306,117180.0,117170.0,0.02293977]
[1759327634297,0.53449306,117180.0,117170.0,0.02293977]
[1759327634904,0.53449306,117180.0,117170.0,0.01293977]
[1759327635140,0.44251759,117180.0,117170.0,0.18571192]
[1759327635596,0.44251759,117180.0,117170.0,0.01501977]
[1759327635774,0.44462759,117180.0,117170.0,0.01501977]
[1759327635926,0.44762759,117180.0,117170.0,0.01293977]
[1759327636403,0.27695,117180.0,117170.0,0.18363192]
[1759327636565,0.17113065,117190.0,117180.0,0.17067759]
[1759327636763,0.44257065,117190.0,117180.0,0.00208]
[1759327637002,0.44468065,117190.0,117170.0,0.18667192]
[1759327637198,0.17067759,117180.0,117170.0,0.79803192]
[1759327637541,0.17067759,117180.0,117170.0,0.80011192]
[1759327637763,0.17067759,117180.0,117170.0,0.35501977]
[1759327637973,0.17278759,117180.0,117170.0,0.35293977]
[1759327638163,0.17578759,117180.0,117170.0,0.35293977]
[1759327638677,0.17278759,117180.0,117170.0,0.35293977]
[1759327639573,0.17578759,117180.0,117170.0,0.35293977]
[1759327639792,0.17278759,117180.0,117170.0,0.52363192]
[1759327640084,0.17278759,117180.0,117170.0,0.35293977]
[1759327640420,0.17573759,117180.0,117170.0,0.35293977]
[1759327640630,0.26512306,117180.0,117170.0,0.35293977]
[1759327642211,0.26512306,117180.0,117170.0,0.01293977]
[1759327643296,0.29527496,117180.0,117170.0,0.01293977]
[1759327643984,0.65419496,117180.0,117170.0,0.01293977]
[1759327644192,0.29527496,117180.0,117170.0,0.01293977]
[1759327644422,0.65415496,117180.0,117170.0,0.01293977]
[1759327644823,0.29527496,117180.0,117170.0,0.01293977]
[1759327645051,0.65415496,117180.0,117170.0,0.01293977]
[1759327645239,0.65399496,117180.0,117170.0,0.01293977]
[1759327645441,0.65391496,117180.0,117170.0,0.01293977]
[1759327645988,0.29527496,117180.0,117170.0,0.01293977]
[1759327646244,0.65395496,117180.0,117170.0,0.01293977]
[1759327646477,0.26217306,117180.0,117170.0,0.18363192]
[1759327646710,0.53185306,117180.0,117170.0,0.18574192]
[1759327646957,0.53177306,117180.0,117170.0,0.18574192]
[1759327647166,0.4620692,117180.0,117170.0,0.20154926]
[1759327647386,0.01981161,117180.0,117170.0,0.54454926]
[1759327647589,0.4602092,117180.0,117170.0,0.54454926]
[1759327647782,0.4601692,117180.0,117170.0,0.54454926]
[1759327648253,0.46814779,117180.0,117170.0,0.54154926]
[1759327648500,0.2973502,117180.0,117170.0,0.54454926]
[1759327648710,0.00797859,117180.0,117170.0,0.54454926]
[1759327649148,0.44859,117190.0,117180.0,0.51067759]
[1759327649371,0.44859,117190.0,117180.0,0.52648493]
[1759327649372,0.45057139,117190.0,117180.0,0.52648493]
[1759327650309,0.44259141,117190.0,117180.0,0.52648493]
[1759327650508,0.53492688,117190.0,117180.0,0.35580734]
[1759327651392,0.53470073,117190.0,117180.0,0.35580734]